[Event "8th Montevideo Open 2025"]
[Site "Montevideo"]
[Date "2025.02.05"]
[Round "5.1"]
[White "Villca, Julian"]
[Black "Coro, Lucas"]
[Result "1/2-1/2"]
[Annotator "TA"]
[ECO "A37"]
[WhiteElo "2413"]
[BlackElo "2415"]
[PlyCount "46"]
[EventDate "2025.02.01"]
[EventType "swiss"]
[EventCountry "URU"]
[SourceTitle "playchess.com"]
[Source "ChessBase"]
[SourceQuality "1"]
[TimeControl "5400+30"]

{[%evp 11,46,12,16,0,0,0,11,6,17,7,0,10,-3,4,34,32,24,0,14,17,5,11,9,21,11,0,0,0,-14,-8,0,-17,-22,-25,-19,-20,-9]} 1. c4 {[%emt 0:15:16]} g6 {[%emt 0:01:08]} 2. Nf3 {[%emt 0:07:11]} Bg7 {[%emt 0:00:19]} 3. Nc3 {[%emt 0:00:06]} c5 {[%emt 0:02:38]} 4. g3 {[%emt 0:02:16]} Nc6 {[%emt 0:03:22]} 5. Bg2 {[%emt 0:00:05]} d6 {[%emt 0:00:18]} 6. O-O {[%emt 0:00:22]} Bf5 {[%emt 0:04:25]} 7. h3 {[%emt 0:00:56]} Nf6 {[%emt 0:19:30]} 8. d3 {[%emt 0:00:54]} O-O {[%emt 0:02:06]} 9. a3 {[%emt 0:00:30]} Rb8 {[%emt 0:01:14]} 10. Rb1 {[%emt 0:00:27]} a6 {[%emt 0:03:06]} 11. b4 {[%emt 0:01:20]} cxb4 {[%emt 0:00:07]} 12. axb4 {[%emt 0:00:04]} b5 {[%emt 0:00:15]} 13. cxb5 {[%emt 0:02:30]} axb5 {[%emt 0:00:07]} 14. Be3 {[%emt 0:02:00]} Qd7 {[%emt 0:01:30]} 15. g4 {[%emt 0:01:48]} Be6 {[%emt 0:02:22][%cal Of6g4]} 16. Ng5 {[%emt 0:08:03]} Rfc8 {[%emt 0:00:42][%cal Of6g4]} ({Reject} 16... Nxg4 $6 17. hxg4 Bxc3 18. Rc1 $18) 17. Nxe6 {[%emt 0:03:39]} Qxe6 {[%emt 0:00:17]} 18. Qd2 {[%emt 0:10:28]} Qd7 {[%emt 0:06:21]} 19. Rfc1 {[%emt 0:04:46]} e6 {[%emt 0:02:50]} 20. g5 {[%emt 0:05:42]} Ne8 {[%emt 0:00:54]} 21. Ne4 {[%emt 0:01:39]} Nd4 {[%emt 0:02:24] [#] Strongly threatening ...Rxc1+.} 22. Bxd4 {[%emt 0:00:36]} Bxd4 {[%emt 0:00:06]} 23. e3 {[%emt 0:00:06]} Bg7 {[%emt 0:01:34] An uneventful encounter.   Weighted Error Value: White=0.05 (flawless) /Black=0.05 (flawless) .  Inaccurate:     	---       	Black=1      OK:         	White=8     	Black=6      Best:        	---       	Black=1} 1/2-1/2

[Event "8th Montevideo Open 2025"]
[Site "Montevideo"]
[Date "2025.02.05"]
[Round "5.2"]
[White "Shoker, Samy"]
[Black "Coppola, Claudio"]
[Result "0-1"]
[Annotator "TA"]
[ECO "A05"]
[WhiteElo "2446"]
[BlackElo "2220"]
[PlyCount "90"]
[EventDate "2025.02.01"]
[EventType "swiss"]
[EventCountry "URU"]
[SourceTitle "playchess.com"]
[Source "ChessBase"]
[SourceQuality "1"]
[TimeControl "5400+30"]

{[%evp 9,90,18,32,9,17,20,31,12,31,27,22,-17,28,-43,37,-37,-38,-39,-31,-23,-27,-38,0,0,12,4,24,12,72,72,98,0,0,-35,-35,-56,-65,-81,-73,-81,-79,-77,0,0,37,-160,-52,-86,-77,-375,-369,-368,-360,-556,-510,-629,-607,-691,-564,-652,-657,-795,-796,-735,-534,-617,-617,-1633,-1494,-6270,-5389,-29984,-29985,-29985,-29986,-29991,-29987,-29992,-29990,-29990,-29991,-29995,-29996]} 1. Nf3 {[%emt 0:00:01]} Nf6 {[%emt 0:06:42]} 2. g3 {[%emt 0:00:05]} b5 {[%emt 0:00:18]} 3. Bg2 {[%emt 0:00:03]} Bb7 {[%emt 0:00:06]} 4. Na3 {[%emt 0:00:15]} a6 {[%emt 0:04:06]} 5. c4 {[%emt 0:00:04]} e6 {[%emt 0:00:20]} 6. b3 {[%emt 0:04:45]} c6 {[%emt 0:07:10]} 7. O-O {[%emt 0:01:12]} Be7 {[%emt 0:01:25]} 8. Bb2 {[%emt 0:05:01][%cal Oe2e4] White is slightly better.} O-O {[%emt 0:02:53]} 9. d4 {[%emt 0:01:58]} d5 {[%emt 0:04:24]} 10. e3 {[%emt 0:07:14]} Nbd7 {[%emt 0:02:01]} 11. Nc2 {[%emt 0:07:14]} (11. c5 $11) 11... Ne4 {[%emt 0:04:51]} (11... dxc4 $15 12. bxc4 bxc4) 12. a4 {[%emt 0:02:59]} (12. c5 $14) 12... bxc4 $15 {[%emt 0:10:12]} 13. bxc4 {[%emt 0:00:10]} a5 {[%emt 0:00:20]} 14. Ne5 {[%emt 0:26:03]} Nxe5 {[%emt 0:02:20]} 15. dxe5 {[%emt 0:00:07]} Ba6 {[%emt 0:01:56]} 16. Nd4 {[%emt 0:02:36] Counterplay Black} Qb6 {[%emt 0:01:43]} 17. Qc2 {[%emt 0:03:46][%cal Of1c1]} Nc5 {[%emt 0:05:31]} (17... Bxc4 $2 18. Bxe4 dxe4 19. Qxc4 $18) 18. Ba3 {[%emt 0:01:41]} Rac8 {[%emt 0:03:02]} (18... dxc4 $2 19. Nxc6 Qc7 20. Nxe7+ Qxe7 21. Bxa8 Rxa8 22. Rfd1 $18) (18... Bxc4 $11 {remains equal.} 19. Rfb1 Qa6) 19. Rfb1 {[%emt 0:10:40]} Qc7 {[%emt 0:08:32] [#]} 20. cxd5 {[%emt 0:00:04]} ({Better is} 20. Bf1 $1 $16) 20... cxd5 $11 {[%emt 0:00:48]} 21. Qd1 {[%emt 0:01:50]} Qxe5 {[%emt 0:08:30]} 22. Rb6 {[%emt 0:00:12] Threatens to win with Bxc5.} Bc4 {[%emt 0:00:13]} 23. Nc6 {[%emt 0:02:33]} Qd6 {[%emt 0:00:34]} 24. Nxe7+ {[%emt 0:02:34]} Qxe7 {[%emt 0:00:03]} 25. Rab1 {[%emt 0:01:37]} Qd7 {[%emt 0:02:03]} (25... Qc7 $17) 26. Qd4 {[%emt 0:00:45]} Rfe8 {[%emt 0:07:08]} 27. e4 $2 {[%emt 0:13:41]} (27. Bxc5 $14 e5 28. Qc3 Rxc5 29. Rb8) 27... Nxa4 {[%emt 0:00:26]} (27... e5 $17 28. Qd2 d4 (28... Nxe4 29. Bxe4 Qxa4 30. Bf5 $11) (28... Nxa4 29. Rb7 $14) (28... Qxa4 29. Bxc5 Rxc5 30. exd5 $11) (28... dxe4 29. Qxd7 Nxd7 30. Rb7 $17) 29. Qxa5 Qxa4 (29... Nxa4 $2 {is the wrong capture.} 30. Rd6 $18)) 28. Rd6 {[%emt 0:00:15]} Qc7 {[%emt 0:01:49]} 29. h4 $2 {[%emt 0:02:37][%mdl 8192] [#] White does not recover from this.} (29. exd5 $17 exd5 30. Rc1) 29... e5 $1 $19 {[%emt 0:02:04]} 30. Qd2 {[%emt 0:00:55]} d4 {[%emt 0:00:09]} 31. f4 {[%emt 0:01:21]} (31. Rc1 $142 Nc3 32. Rxc3 dxc3 33. Qxc3) 31... Nc3 {[%emt 0:03:53]} 32. Rbb6 {[%emt 0:00:03]} exf4 {[%emt 0:01:26]} 33. gxf4 {[%emt 0:01:18]} Qe7 {[%emt 0:02:01] Hoping for ...Ne2+.} 34. Qe1 {[%emt 0:01:15]} Nb5 {[%emt 0:03:03] Prevents e5.} 35. Rxb5 {[%emt 0:00:22]} Bxb5 {[%emt 0:00:02]} 36. Qxa5 {[%emt 0:00:06]} Ra8 {[%emt 0:03:11]} 37. Qb4 {[%emt 0:00:00]} Reb8 {[%emt 0:01:44]} 38. e5 {[%emt 0:01:16] [#]} Bc6 {[%emt 0:01:05][%mdl 512]} 39. Qc5 {[%emt 0:01:22]} (39. Bxc6 Rxb4) 39... Bxg2 {[%emt 0:00:11]} 40. Kxg2 {[%emt 0:00:00]} Qb7+ {[%emt 0:01:00] Black mates.} 41. Kf2 {[%emt 0:00:19]} Qb3 {[%emt 0:00:28]} 42. e6 {[%emt 0:00:31]} fxe6 {[%emt 0:00:43]} 43. Rd7 {[%emt 0:00:13]} Qxa3 {[%emt 0:00:38]} 44. Rxg7+ {[%emt 0:00:09]} Kxg7 {[%emt 0:00:16]} 45. Qe7+ {[%emt 0:00:03]} Qxe7 {[%emt 0:00:09] Weighted Error Value: White=0.71/Black=0.35  Loses game:     	White=1     	---        Mistake:       	White=5     	Black=4      Inaccurate:     	White=4     	Black=4      OK:         	White=7     	Black=5      Best:        	---       	Black=2      Strong:       	---       	Black=1} 0-1

[Event "8th Montevideo Open 2025"]
[Site "Montevideo"]
[Date "2025.02.05"]
[Round "5.3"]
[White "Komarov, Leonid"]
[Black "Vazquez, Facundo"]
[Result "0-1"]
[Annotator "TA"]
[ECO "E13"]
[WhiteElo "1956"]
[BlackElo "2404"]
[PlyCount "142"]
[EventDate "2025.02.01"]
[EventType "swiss"]
[EventCountry "URU"]
[SourceTitle "playchess.com"]
[Source "ChessBase"]
[SourceQuality "1"]
[TimeControl "5400+30"]

{[%evp 17,142,-19,0,-6,-15,6,45,20,33,31,33,-41,-37,-36,-33,-22,-19,-19,0,-25,-31,-52,-45,-46,-29,-13,0,-26,-21,-28,-16,-13,-10,-31,-10,-39,-25,-36,-37,-37,-37,-39,-31,-43,-43,-50,-32,-81,-68,-78,-34,-42,-10,-10,-10,-10,-10,-10,-10,-11,-11,-84,-84,-84,-84,-106,-106,-106,-106,-249,-239,-503,-487,-435,-385,-695,-684,-735,-721,-717,-706,-691,-684,-677,-669,-647,-633,-626,-611,-584,-346,-1631,-1111,-1535,-1437,-1622,-4415,-2296,-1680,-29944,-12791,-5800,-12718,-29975,-29976,-29970,-12808,-29973,-6733,-29978,-6725,-29992,-29992,-29993,-29994,-29994,-29995,-29995,-29996,-29996,-29996,-29996,-29997,-29997,-29998,-29998,-29999]} 1. d4 {[%emt 0:00:01]} Nf6 {[%emt 0:00:19]} 2. c4 {[%emt 0:00:04]} e6 {[%emt 0:00:21]} 3. Nf3 {[%emt 0:00:12]} b6 {[%emt 0:00:22]} 4. Nc3 {[%emt 0:00:27]} Bb4 {[%emt 0:01:31]} 5. Bg5 {[%emt 0:00:33][%cal Bc1g5,Bg5h4,Bh4g3][%mdl 32]} h6 {[%emt 0:01:49]} 6. Bh4 {[%emt 0:00:27]} g5 {[%emt 0:01:16]} 7. Bg3 {[%emt 0:00:06]} Ne4 {[%emt 0:01:09]} 8. Qc2 {[%emt 0:02:01]} f5 {[%emt 0:03:56]} 9. e3 {[%emt 0:10:12]} Bb7 {[%emt 0:10:06]} 10. Bd3 {[%emt 0:01:07] E13: Queen's Indian/Nimzo-Indian hybrid: 4 Nc3 Bb7 5 Bg5 h6 6 Bh4 Bb4.} Bxc3+ {[%emt 0:10:06]} 11. bxc3 {[%emt 0:00:25]} Nxg3 {[%emt 0:02:15]} 12. hxg3 {[%emt 0:00:13] White is slightly better.} Qf6 {[%emt 0:03:48]} 13. e4 {[%emt 0:03:22]} Nc6 $146 {[%emt 0:05:41]} (13... O-O 14. exf5 exf5 15. O-O-O Nc6 16. Rde1 Ne7 17. d5 c6 18. Rxe7 Qxe7 19. Rxh6 cxd5 20. Bxf5 {0-1 Ristovic,N (2293)-Bolduc,S (2177) Canada zt Toronto 2006 (7)}) 14. O-O-O {[%emt 0:00:42]} ({White should try} 14. exf5 $14 exf5 15. Bxf5) 14... fxe4 $15 {[%emt 0:00:42]} 15. Bxe4 {[%emt 0:00:10]} O-O-O {[%emt 0:00:25]} 16. Rhe1 {[%emt 0:09:26]} Rhf8 {[%emt 0:03:47]} 17. Re2 {[%emt 0:01:24]} g4 {[%emt 0:03:44] [#]} 18. Ne5 {[%emt 0:04:30]} Nxe5 {[%emt 0:02:04]} 19. Bxb7+ {[%emt 0:00:25]} Kxb7 {[%emt 0:00:10]} 20. dxe5 {[%emt 0:00:11]} Qg5+ {[%emt 0:00:12]} 21. Kb2 {[%emt 0:01:02]} Qf5 {[%emt 0:05:09]} 22. Rd3 {[%emt 0:04:02]} h5 {[%emt 0:01:46]} 23. Qd2 {[%emt 0:00:41]} Qf7 {[%emt 0:04:08]} 24. Qe3 {[%emt 0:00:46]} Qe7 {[%emt 0:00:37]} 25. Qe4+ {[%emt 0:01:21]} Ka6 {[%emt 0:03:34]} 26. Red2 {[%emt 0:10:15]} Qc5 {[%emt 0:01:16]} 27. f4 {[%emt 0:00:43]} gxf3 {[%emt 0:01:05]} 28. gxf3 {[%emt 0:00:09]} Rg8 {[%emt 0:02:25]} 29. f4 {[%emt 0:00:46][%cal Od2h2]} Rg7 {[%emt 0:00:20]} 30. Qd4 {[%emt 0:04:10]} Qc6 {[%emt 0:01:50]} 31. Kb3 {[%emt 0:01:38]} Kb7 {[%emt 0:02:00]} 32. Qf2 {[%emt 0:00:49]} (32. Rh2 $15) 32... Rdg8 $17 {[%emt 0:01:24]} 33. f5 {[%emt 0:02:00]} exf5 {[%emt 0:05:15]} (33... Rg5 {with more complications.} 34. f6 Rxe5 35. f7 Rf8) 34. Qxf5 {[%emt 0:00:32]} Rg5 {[%emt 0:00:38]} (34... Rxg3 35. Rxg3 Rxg3 36. Rxd7) 35. Qxd7 {[%emt 0:01:19]} Rxe5 {[%emt 0:02:02]} 36. Qxc6+ {[%emt 0:00:28]} Kxc6 $11 {[%emt 0:00:03][%mdl 4096] Endgame KRR-KRR} 37. Rd5 {[%emt 0:00:22]} Rgg5 {[%emt 0:00:37]} 38. Rxe5 {[%emt 0:00:10]} Rxe5 {[%emt 0:00:01] KR-KR} 39. Rh2 {[%emt 0:00:02]} (39. Rf2 $11) 39... Rg5 $17 {[%emt 0:00:54]} 40. Rh4 {[%emt 0:00:17]} Kd6 {[%emt 0:00:19]} (40... Rxg3 $6 41. Rxh5 Rg6 42. Rh4 $11) 41. Kb4 {[%emt 0:04:02]} Ke6 {[%emt 0:03:26]} (41... Rxg3 $6 42. Rxh5 Rg6 43. Kb5 $11) 42. c5 {[%emt 0:02:38]} a5+ {[%emt 0:05:14]} (42... bxc5+ 43. Kb5 $15) (42... Rxg3 $6 43. Rxh5 Kd7 44. Rh7+ Kd8 45. c6 $11) 43. Ka4 {[%emt 0:01:27] This costs White the game.} (43. Kb3 $17) 43... Rxc5 $19 {[%emt 0:00:23]} (43... Rxg3 44. cxb6 cxb6 45. Rxh5 $11) 44. g4 $2 {[%emt 0:00:19]} (44. Re4+ Kd6 45. Re3) 44... hxg4 {[%emt 0:00:20]} ({Not} 44... Rxc3 45. gxh5 Kf7 46. Rg4 $17) 45. Rxg4 {[%emt 0:00:14]} Rxc3 {[%emt 0:00:04]} 46. Rd4 $2 {[%emt 0:00:22]} (46. Rh4) 46... c6 {[%emt 0:00:46]} 47. Rd2 {[%emt 0:00:19]} Ke5 {[%emt 0:00:50]} 48. Rh2 {[%emt 0:02:02]} Rc4+ {[%emt 0:00:57]} 49. Kb3 {[%emt 0:00:08]} b5 {[%emt 0:00:07]} 50. Rh6 {[%emt 0:00:58]} Kd5 {[%emt 0:00:18]} 51. Rh5+ {[%emt 0:00:26]} Kd6 {[%emt 0:00:17]} 52. Ka3 {[%emt 0:00:30]} Kc7 {[%emt 0:00:11]} 53. Kb3 {[%emt 0:00:25]} Kb6 {[%emt 0:00:08]} 54. Rg5 $2 {[%emt 0:00:18]} (54. a3) 54... Rf4 {[%emt 0:00:28] aiming for ...Rf3+.} 55. Rg2 {[%emt 0:00:20]} a4+ {[%emt 0:00:09]} 56. Ka3 {[%emt 0:00:32]} Rf3+ {[%emt 0:00:08]} 57. Kb2 {[%emt 0:00:08]} b4 {[%emt 0:00:08]} 58. Rh2 {[%emt 0:00:20]} Kb5 {[%emt 0:00:09]} (58... a3+ $142 59. Kb1 Rf1+ 60. Kc2 Kb5 61. Rg2 c5 62. Kd3 c4+ 63. Ke2 Ra1 64. Kf3 Ka4 65. Ke3 Rxa2 66. Rxa2 b3 67. Rf2 a2 68. Rf6 b2 (68... a1=B 69. Rf4 $17) (68... a1=N 69. Kd2 $11) (68... a1=Q $2 69. Ra6+ Kb4 70. Rxa1 $19) 69. Rf8 a1=Q (69... b1=N $2 70. Ra8+ Kb3 71. Rb8+ Kc2 72. Ra8 $19) 70. Ra8+ Kb3 71. Rb8+ Kc2 72. Kf3 b1=Q (72... b1=B $2 73. Rg8 $19) 73. Rxb1 Kxb1 74. Kg3 Qe5+ 75. Kf3 c3 76. Kf2 c2 77. Kf3 c1=Q (77... c1=R {leads to mate.} 78. Kg4 Rc3 79. Kh4 Qg7 80. Kh5 Rh3#) 78. Kg2 Qef4 79. Kh3 Qh1#) 59. Rg2 {[%emt 0:00:14]} c5 {[%emt 0:00:09]} 60. Rh2 {[%emt 0:00:03]} a3+ {[%emt 0:01:07]} 61. Kc2 {[%emt 0:00:01]} Rf1 {[%emt 0:00:20] ( -> ...Ra1)} 62. Rh8 {[%emt 0:01:50]} Ra1 {[%emt 0:00:15]} 63. Rh5 {[%emt 0:00:07]} Rxa2+ {[%emt 0:00:09]} 64. Kb1 {[%emt 0:00:02]} Rg2 {[%emt 0:00:08] Black mates.} 65. Rh1 {[%emt 0:00:08]} b3 {[%emt 0:00:06]} 66. Ka1 {[%emt 0:00:03]} Kb4 {[%emt 0:00:09]} 67. Rf1 {[%emt 0:00:06]} c4 {[%emt 0:00:05]} 68. Rh1 {[%emt 0:00:08]} Rc2 {[%emt 0:00:16]} 69. Rg1 {[%emt 0:00:18]} a2 {[%emt 0:01:13]} 70. Rh1 {[%emt 0:00:35]} Ka3 {[%emt 0:00:09][%csl Ga3,Gc2][%cal Rb3b2]} 71. Rb1 {[%emt 0:00:18] [#]} Rc1 $1 {[%emt 0:00:26][%mdl 512] Weighted Error Value: White=0.31/Black=0.07 (flawless)   Mistake:       	White=6     	---        Inaccurate:     	White=3     	Black=4      OK:         	White=14    	Black=11     Best:        	White=1     	Black=6} 0-1

[Event "8th Montevideo Open 2025"]
[Site "Montevideo"]
[Date "2025.02.04"]
[Round "5.4"]
[White "Roselli Mailhe, Bernardo"]
[Black "Hoffman, Alejandro"]
[Result "1/2-1/2"]
[Annotator "TA"]
[ECO "D73"]
[WhiteElo "2342"]
[BlackElo "2368"]
[PlyCount "35"]
[EventDate "2025.02.01"]
[EventType "swiss"]
[EventCountry "URU"]
[SourceTitle "playchess.com"]
[Source "ChessBase"]
[SourceQuality "1"]
[TimeControl "5400+30"]

{[%evp 17,22,2,16,8,27,11,12]} 1. d4 {[%emt 0:00:05]} Nf6 {[%emt 0:00:07]} 2. c4 {[%emt 0:00:05]} g6 {[%emt 0:00:07]} 3. Nf3 {[%emt 0:00:09]} Bg7 {[%emt 0:00:08]} 4. g3 {[%emt 0:00:03]} c6 {[%emt 0:00:08]} 5. Bg2 {[%emt 1:32:38]} d5 6. cxd5 {[%emt 0:00:00]} cxd5 {[%emt 1:33:00]} 7. Ne5 {[%emt 0:00:00]} O-O {[%emt 0:00:00]} 8. Nc3 {[%emt 0:00:00]} Nc6 {[%emt 0:00:00]} 9. Nxc6 {[%emt 0:00:00]} bxc6 {[%emt 0:00:00]} 10. O-O {[%emt 0:00:00] D73: Fianchetto Grünfeld: 5 Nf3 .} Re8 {[%emt 0:00:00]} 11. Bf4 {[%emt 0:00:00]} Nh5 {[%emt 0:02:30] An uneventful encounter.} 12. Be3 $146 e5 13. dxe5 Bxe5 14. Bd4 Qf6 15. Bxe5 Qxe5 16. e3 Ba6 17. Re1 Rab8 18. Qd2 {½-½ Figueredo Losada,L (2321)-Arutla,A (2230) San Jose Dual Schev 2024 (3.5)} 1/2-1/2

[Event "8th Montevideo Open 2025"]
[Site "Montevideo"]
[Date "2025.02.05"]
[Round "5.5"]
[White "Villegas, Franco"]
[Black "Meza, Anahi"]
[Result "1-0"]
[Annotator "TA"]
[ECO "B42"]
[WhiteElo "2325"]
[BlackElo "2038"]
[PlyCount "77"]
[EventDate "2025.02.01"]
[EventType "swiss"]
[EventCountry "URU"]
[SourceTitle "playchess.com"]
[Source "ChessBase"]
[SourceQuality "1"]
[TimeControl "5400+30"]

{[%evp 17,77,39,65,39,53,42,51,34,54,37,72,30,89,68,84,62,80,38,70,62,76,39,31,47,75,61,73,30,20,4,9,0,20,27,32,6,21,11,19,22,43,45,183,169,177,167,159,172,2702,2622,1920,1845,1445,1427,1339,1344,1340,1318,1318,1299,1151,1141]} 1. e4 {[%emt 0:05:18]} c5 {[%emt 0:00:12]} 2. Nf3 {[%emt 0:00:09]} e6 {[%emt 0:00:10]} 3. d4 {[%emt 0:00:09]} cxd4 {[%emt 0:00:07]} 4. Nxd4 {[%emt 0:00:04]} a6 {[%emt 0:00:07]} 5. Bd3 {[%emt 0:00:05]} Bc5 {[%emt 0:00:18]} 6. Nb3 {[%emt 1:27:45]} Be7 7. O-O {[%emt 0:00:00]} d6 {[%emt 0:00:34]} 8. c4 {[%emt 0:00:00]} Nf6 {[%emt 0:00:55]} 9. Nc3 {[%emt 0:00:00]} Nbd7 {[%emt 0:00:30]} 10. Be3 {[%emt 0:00:00] B42: Sicilian: Kan Variation: 5 Bd3.} b6 {[%emt 0:00:30]} 11. f4 {[%emt 0:00:00]} Bb7 {[%emt 0:01:11]} 12. Qf3 {[%emt 0:00:00] White is slightly better.} O-O {[%emt 0:00:30]} 13. Rad1 {[%emt 0:00:00]} Qc7 {[%emt 0:06:45][%cal Ob6b5]} 14. Qh3 {[%emt 0:00:00]} g6 {[%emt 0:00:56]} (14... h5 $11 {remains equal.}) 15. g4 {[%emt 0:00:00]} Rfe8 {[%emt 0:14:46]} 16. g5 {[%emt 0:00:00]} Nh5 {[%emt 0:01:33]} 17. Nd4 {[%emt 0:00:00]} Bf8 {[%emt 0:01:55]} 18. Be2 {[%emt 0:00:00]} Ng7 {[%emt 0:10:22]} 19. f5 {[%emt 0:00:00] White is much more active.} (19. Rd2 {with more complications.} f5 20. Bf3 fxe4 21. Nxe4 Rad8 22. Qg2) 19... exf5 {[%emt 0:01:39]} 20. exf5 {[%emt 0:00:00]} Nxf5 $146 {[%emt 0:10:40]} (20... gxf5 21. b3 Ne5 22. Nxf5 Nxf5 23. Qxf5 Bg7 24. Nd5 Bxd5 25. Rxd5 Nxc4 26. Bxc4 Rxe3 {½-½ Bayer,W-Kroll,O (2245) W-ch WS/M/263 email 2010}) 21. Nxf5 {[%emt 0:00:00]} gxf5 {[%emt 0:00:04]} 22. Rxf5 {[%emt 0:00:00]} Ne5 {[%emt 0:01:25]} 23. Nd5 {[%emt 0:00:00]} Bxd5 {[%emt 0:00:31]} 24. cxd5 {[%emt 0:00:00]} Nc4 {[%emt 0:09:22]} 25. Bxc4 {[%emt 0:00:00]} Qxc4 {[%emt 0:00:03]} 26. Bd4 $40 {[%emt 0:00:00][%cal Of5f7][%mdl 128] Prevents Rxe3. White mounts an attack.} Re7 {[%emt 0:06:20]} 27. b3 {[%emt 0:00:00]} (27. Bxb6 Bg7 $15) 27... Qe2 {[%emt 0:13:36]} 28. Rdf1 {[%emt 0:00:00]} b5 {[%emt 0:03:10][%cal Oe7e4]} 29. R5f4 {[%emt 0:00:00] Qf5 is the strong threat.} Rae8 {[%emt 0:07:18][%csl Of7] [#] White attacks a weakness A mistake that costs the game.} ({Black should try} 29... Bg7 $14) 30. Qf5 $1 $18 {[%emt 0:00:00]} Bg7 {[%emt 0:07:47]} 31. Bxg7 {[%emt 0:00:00]} Kxg7 {[%emt 0:00:03] [#]} 32. Rh4 {[%emt 0:00:00] Against Qh5. Really sharp!} Rh8 {[%emt 0:01:44]} (32... Qe5) 33. Qf6+ {[%emt 0:00:00] White is clearly winning.} Kg8 {[%emt 0:00:02]} 34. g6 {[%emt 0:00:00][%cal Rg6f7]} ({Not} 34. Qxd6 Qe3+ 35. Kh1 Qe5 36. Qxe5 (36. Qxa6 Qxd5+ 37. Kg1 Qxg5+ 38. Kh1 Qd5+ 39. Kg1 h5 $11) 36... Rxe5 $16) 34... Qe5 {[%emt 0:00:50]} 35. gxf7+ {[%emt 0:00:00]} Kf8 {[%emt 0:00:10]} 36. Qh6+ {[%emt 0:00:00]} Qg7+ {[%emt 0:00:20]} 37. Qxg7+ {[%emt 0:00:00]} Kxg7 {[%emt 0:00:02] [#]} 38. f8=Q+ $1 {[%emt 0:00:00][%mdl 512]} Rxf8 {[%emt 0:00:14]} 39. Rg4+ {[%emt 0:00:00] Weighted Error Value: White=0.10 (very precise) /Black=0.45  Mistake:       	---       	Black=3      Inaccurate:     	White=5     	Black=3      OK:         	White=7     	Black=8      Best:        	White=1     	Black=2      Strong:       	White=1     	---} 1-0